[Event "Turkish-ch Youth U15 2024"]
[Site "Belek Antalya"]
[Date "2024.01.25"]
[Round "7"]
[White "Biyiksiz, Ali Batuhan"]
[Black "Yerli, Hasan"]
[Result "1-0"]
[ECO "A49"]
[WhiteElo "2164"]
[BlackElo "1470"]
[Annotator "RC"]
[PlyCount "143"]
[EventDate "2024.01.21"]
[EventType "swiss"]
[EventCountry "TUR"]
[SourceTitle "playchess.com"]
[Source "ChessBase"]
[SourceQuality "1"]
[TimeControl "5400+30"]

1. d4 {[%emt 0:01:00]} g6 {[%emt 0:01:00]} 2. Nf3 {[%emt 0:01:30]} Bg7 {[%emt 0:00:30]} 3. g3 {[%emt 0:00:30]} Nf6 {[%emt 0:00:30]} 4. Bg2 {[%emt 0:00:30]} O-O {[%emt 0:00:30]} 5. O-O {[%emt 0:00:30]} d6 {[%emt 0:00:30]} 6. a4 {[%emt 0:00:00]} Nbd7 {[%emt 0:00:00]} 7. a5 {[%emt 0:00:00]} a6 {[%emt 0:00:00]} 8. c4 {[%emt 0:01:30]} c5 {[%emt 0:05:30]} 9. d5 {[%emt 0:01:30]} b5 {[%emt 0:03:30]} 10. axb6 {[%emt 0:00:30]} Nxb6 {[%emt 0:01:30]} 11. Nbd2 {[%emt 0:01:30]} a5 {[%emt 0:08:30]} 12. Qc2 {[%emt 0:06:30]} Nfd7 {[%emt 0:01:30]} 13. Ne1 {[%emt 0:10:30]} Nb8 {[%emt 0:09:30]} 14. Nd3 {[%emt 0:01:30]} Bd7 {[%emt 0:00:30]} 15. e4 {[%emt 0:13:30]} Na6 {[%emt 0:03:30]} 16. Rxa5 {[%emt 0:23:30]} Nb4 {[%emt 0:05:30]} 17. Rxa8 {[%emt 0:00:30]} Nxc2 {[%emt 0:00:30]} 18. Rxd8 {[%emt 0:00:30]} Rxd8 {[%emt 0:00:00]} 19. b3 {[%emt 0:00:30]} Ra8 {[%emt 0:01:00]} 20. e5 {[%emt 0:00:30]} Ra2 {[%emt 0:16:30]} 21. exd6 {[%emt 0:03:30]} exd6 {[%emt 0:00:30]} 22. Ne4 {[%emt 0:00:30]} Bg4 {[%emt 0:04:30]} 23. Bf4 {[%emt 0:04:30]} Nd4 {[%emt 0:13:30]} 24. Nc1 {[%emt 0:02:30]} Ne2+ {[%emt 0:02:30]} 25. Kh1 {[%emt 0:05:30]} Nxc1 {[%emt 0:00:30]} 26. Rxc1 {[%emt 0:00:00]} f5 {[%emt 0:00:30]} 27. Nxd6 {[%emt 0:00:00]} Rxf2 {[%emt 0:03:27]} 28. Be3 {[%emt 0:01:30]} Rb2 {[%emt 0:02:03]} 29. Bxc5 {[%emt 0:00:30]} Nd7 {[%emt 0:01:16]} 30. Bg1 {[%emt 0:00:30]} Be5 {[%emt 0:03:37]} 31. Nb5 {[%emt 0:02:51]} Rxb3 {[%emt 0:00:52]} 32. Nd4 {[%emt 0:01:46]} Rd3 {[%emt 0:02:31]} 33. Ne6 {[%emt 0:09:08]} Rd1 {[%emt 0:01:56]} 34. Rxd1 {[%emt 0:03:03]} Bxd1 {[%emt 0:00:30]} 35. c5 {[%emt 0:00:30]} Nf6 {[%emt 0:03:40]} 36. c6 {[%emt 0:03:53]} Ne8 {[%emt 0:00:57]} 37. Bc5 {[%emt 0:01:20]} Be2 {[%emt 0:01:45]} 38. Nd8 {[%emt 0:00:37]} Ba6 {[%emt 0:02:31]} 39. Kg1 {[%emt 0:00:45]} Bc8 {[%emt 0:00:58]} 40. Kf2 {[%emt 0:00:30]} Bc7 {[%emt 0:00:54]} 41. Nb7 {[%emt 0:00:29]} Bxb7 {[%emt 0:00:15]} 42. cxb7 {[%emt 0:00:30]} Bb8 {[%emt 0:00:07]} 43. Ke3 {[%emt 0:00:30]} Kf7 {[%emt 0:00:37]} 44. Bf1 {[%emt 0:00:14]} Nd6 {[%emt 0:00:39]} 45. Ba6 {[%emt 0:00:00]} Ke8 {[%emt 0:00:56]} 46. Kd3 {[%emt 0:00:57]} Kd7 {[%emt 0:00:35]} 47. Kd4 {[%emt 0:00:01]} h6 {[%emt 0:00:39]} 48. Bb6 {[%emt 0:00:54]} g5 {[%emt 0:01:04]} 49. Ba5 {[%emt 0:00:30]} f4 {[%emt 0:00:30]} 50. gxf4 {[%emt 0:00:30]} gxf4 {[%emt 0:00:30]} 51. Bd2 {[%emt 0:00:00]} Kc7 {[%emt 0:00:00]} 52. Bxf4 {[%emt 0:00:39]} Kb6 {[%emt 0:00:30]} 53. Bd3 {[%emt 0:00:14]} h5 {[%emt 0:00:29]} 54. h3 {[%emt 0:00:59]} Kxb7 {[%emt 0:00:20]} 55. Bg6 {[%emt 0:00:24]} h4 {[%emt 0:00:51]} 56. Bg5 {[%emt 0:00:38]} Ba7+ {[%emt 0:00:30]} 57. Ke5 {[%emt 0:00:00]} Nc4+ {[%emt 0:00:26]} 58. Ke6 {[%emt 0:00:00]} Bb8 {[%emt 0:00:33]} 59. Bxh4 {[%emt 0:00:00]} Bf4 {[%emt 0:00:31]} 60. Bf6 {[%emt 0:00:28]} Kc7 {[%emt 0:00:47]} 61. h4 {[%emt 0:00:15]} Be3 {[%emt 0:00:25]} 62. h5 {[%emt 0:00:14]} Nb6 {[%emt 0:00:25]} 63. d6+ {[%emt 0:00:30]} Kc8 {[%emt 0:00:01]} 64. Be8 {[%emt 0:00:28]} Kb7 {[%emt 0:00:31]} 65. d7 {[%emt 0:00:07]} Nxd7 {[%emt 0:00:30]} 66. Kxd7 {[%emt 0:00:30]} Kb6 {[%emt 0:00:00]} 67. Ke6 {[%emt 0:00:00]} Kc5 {[%emt 0:00:11]} 68. Kf7 {[%emt 0:00:29]} Kd6 {[%emt 0:00:30]} 69. Kg6 {[%emt 0:00:00]} Bd2 {[%emt 0:00:02]} 70. Bf7 {[%emt 0:00:00]} Be3 {[%emt 0:00:30]} 71. Bg5 {[%emt 0:00:07]} Bd4 {[%emt 0:00:00]} 72. h6 {[%emt 0:00:00]} 1-0

[Event "Turkish-ch Youth U15 2024"]
[Site "Belek Antalya"]
[Date "2024.01.25"]
[Round "7"]
[White "Demirtas, Alper"]
[Black "Cicek, Bilal Emre"]
[Result "1-0"]
[ECO "D02"]
[WhiteElo "2002"]
[BlackElo "1649"]
[Annotator "NA RC"]
[PlyCount "87"]
[EventDate "2024.01.21"]
[EventType "swiss"]
[EventCountry "TUR"]
[SourceTitle "playchess.com"]
[Source "ChessBase"]
[SourceQuality "1"]
[TimeControl "5400+30"]

1. Nf3 {[%emt 0:01:00]} d5 {[%emt 0:01:00]} 2. d4 {[%emt 0:00:30]} e6 {[%emt 0:00:30]} 3. c3 {[%emt 0:00:30]} Nf6 {[%emt 0:00:00]} 4. Bf4 {[%emt 0:00:00]} Bd6 {[%emt 0:00:00]} 5. e3 {[%emt 0:00:00]} O-O {[%emt 0:00:30]} 6. Nbd2 {[%emt 0:00:30]} c5 {[%emt 0:00:00]} 7. Ne5 {[%emt 0:00:30]} Nc6 {[%emt 0:02:00]} 8. Bd3 {[%emt 0:09:30]} Qc7 {[%emt 0:06:30]} 9. Ndf3 {[%emt 0:07:30]} cxd4 {[%emt 0:13:30]} 10. exd4 {[%emt 0:02:30]} Ne4 {[%emt 0:01:30]} 11. Bg3 {[%emt 0:10:30]} f6 {[%emt 0:17:30]} 12. Nxc6 {[%emt 0:00:30]} Bxg3 {[%emt 0:06:30]} 13. hxg3 {[%emt 0:03:30]} Qxc6 {[%emt 0:04:30]} 14. Qc2 $16 {[%emt 0:04:30]} h6 {[%emt 0:09:30]} 15. Rh4 {[%emt 0:05:30]} Nd6 {[%emt 0:02:30]} 16. O-O-O {[%emt 0:01:30]} Bd7 {[%emt 0:01:30]} 17. Kb1 {[%emt 0:05:30]} b5 {[%emt 0:00:30]} 18. Rxh6 {[%emt 0:13:30]} gxh6 {[%emt 0:06:30]} 19. Bxb5 {[%emt 0:00:30]} Ne4 {[%emt 0:01:30]} 20. Bxc6 {[%emt 0:00:30]} Bxc6 {[%emt 0:00:00]} 21. Nd2 {[%emt 0:05:30]} f5 {[%emt 0:00:00]} 22. Nxe4 {[%emt 0:01:30]} fxe4 {[%emt 0:00:30]} 23. f3 {[%emt 0:00:30]} Rf6 {[%emt 0:00:30]} 24. fxe4 {[%emt 0:00:30]} dxe4 {[%emt 0:00:30]} 25. c4 {[%emt 0:00:30]} Raf8 {[%emt 0:00:30]} 26. d5 {[%emt 0:00:30]} exd5 {[%emt 0:00:30]} 27. cxd5 {[%emt 0:00:30]} Bd7 {[%emt 0:00:30]} 28. Qc1 {[%emt 0:05:30]} Bb5 {[%emt 0:00:00]} 29. Qe3 {[%emt 0:09:03]} Bd3+ {[%emt 0:01:00]} 30. Rxd3 {[%emt 0:00:02]} Rf1+ {[%emt 0:03:30]} 31. Kc2 {[%emt 0:00:49]} exd3+ {[%emt 0:00:30]} 32. Qxd3 {[%emt 0:00:53]} R1f2+ {[%emt 0:00:30]} 33. Kb3 {[%emt 0:03:48]} Rb8+ {[%emt 0:03:00]} 34. Ka3 {[%emt 0:00:03]} Rf6 {[%emt 0:01:10]} 35. b4 {[%emt 0:01:25]} Rd6 {[%emt 0:00:30]} 36. Kb3 {[%emt 0:00:30]} Rbd8 {[%emt 0:00:30]} 37. Kc4 {[%emt 0:00:30]} a6 {[%emt 0:00:30]} 38. Kc5 {[%emt 0:00:30]} Rf6 {[%emt 0:01:17]} 39. d6 {[%emt 0:01:35]} Kf8 {[%emt 0:00:27]} 40. Kc6 {[%emt 0:00:36]} Rf7 {[%emt 0:00:50]} 41. d7 {[%emt 0:00:39]} Kg7 {[%emt 0:00:32]} 42. a4 {[%emt 0:00:07]} Kf6 {[%emt 0:00:16]} 43. Kc7 {[%emt 0:00:23]} Rff8 {[%emt 0:00:08]} 44. Qd6+ {[%emt 0:00:12]} 1-0

[Event "Turkish-ch Youth U15 2024"]
[Site "Belek Antalya"]
[Date "2024.01.25"]
[Round "7"]
[White "Dirikolu, Deniz"]
[Black "Yalcinkaya, Efe"]
[Result "1/2-1/2"]
[ECO "B42"]
[WhiteElo "1786"]
[BlackElo "2067"]
[Annotator "NA RC"]
[PlyCount "53"]
[EventDate "2024.01.21"]
[EventType "swiss"]
[EventCountry "TUR"]
[SourceTitle "playchess.com"]
[Source "ChessBase"]
[SourceQuality "1"]
[TimeControl "5400+30"]

1. e4 {[%emt 0:02:00]} c5 {[%emt 0:01:00]} 2. Nf3 {[%emt 0:00:30]} e6 {[%emt 0:00:30]} 3. d4 {[%emt 0:00:30]} cxd4 {[%emt 0:00:30]} 4. Nxd4 {[%emt 0:00:30]} a6 {[%emt 0:00:30]} 5. Bd3 {[%emt 0:00:00]} Bc5 {[%emt 0:00:00]} 6. Nb3 {[%emt 0:00:00]} Ba7 {[%emt 0:00:00]} 7. O-O {[%emt 0:00:00]} Ne7 {[%emt 0:00:00]} 8. Qe2 {[%emt 0:00:00] B42: Sicilian: Kan Variation: 5 Bd3.} O-O {[%emt 0:01:00] outshines the older 8...Nbc6.} 9. Be3 {[%emt 0:00:00]} Nbc6 {[%emt 0:01:30]} 10. Bxa7 {[%emt 0:00:00]} Rxa7 {[%emt 0:00:30]} 11. Rd1 {[%emt 0:00:00]} d6 {[%emt 0:01:30]} 12. c4 {[%emt 0:01:00]} b6 {[%emt 0:06:30]} 13. Nc3 {[%emt 0:00:30]} Rd7 $146 {[%emt 0:07:30]} ({Predecessor:} 13... Qc7 14. Qe3 Qb8 15. Rac1 Rd8 16. Be2 Rc7 17. a3 h6 18. h3 Ne5 19. Nd2 N5g6 {½-½ Grischuk,A (2777)-Svidler,P (2723) FIDE Steinitz Memorial blitz 2020 (16)}) 14. Qe3 {[%emt 0:06:30]} Bb7 {[%emt 0:11:30]} 15. f4 {[%emt 0:04:30]} Nb4 {[%emt 0:09:30]} 16. a3 {[%emt 0:07:30]} Nxd3 {[%emt 0:00:30]} 17. Rxd3 {[%emt 0:00:30]} Qc7 {[%emt 0:07:30]} 18. Rc1 {[%emt 0:08:30]} Rfd8 {[%emt 0:07:30]} (18... Qxc4 $15 {is more appropriate.} 19. Nd2 Qc7) 19. Nd4 $11 {[%emt 0:09:30]} (19. Nd2 $14) 19... Rc8 {[%emt 0:06:30]} 20. b3 {[%emt 0:06:30]} Ba8 {[%emt 0:07:30]} 21. Rf1 {[%emt 0:04:30]} e5 {[%emt 0:12:05]} 22. Nde2 {[%emt 0:02:30]} exf4 {[%emt 0:02:00]} 23. Nxf4 {[%emt 0:00:30]} Re8 {[%emt 0:01:04]} 24. Rfd1 {[%emt 0:03:30]} Bc6 {[%emt 0:03:02]} 25. Qd4 {[%emt 0:01:30]} Qb7 {[%emt 0:02:07]} 26. Nfd5 {[%emt 0:19:30]} Ng6 {[%emt 0:00:30]} 27. Rg3 {[%emt 0:00:30]} 1/2-1/2

[Event "Turkish-ch Youth U15 2024"]
[Site "Belek Antalya"]
[Date "2024.01.25"]
[Round "7"]
[White "Karabulut, Etka"]
[Black "Sakmak, Kutay"]
[Result "0-1"]
[ECO "C88"]
[WhiteElo "1692"]
[BlackElo "1971"]
[Annotator "NA RC"]
[PlyCount "90"]
[EventDate "2024.01.21"]
[EventType "swiss"]
[EventCountry "TUR"]
[SourceTitle "playchess.com"]
[Source "ChessBase"]
[SourceQuality "1"]
[TimeControl "5400+30"]

1. e4 {[%emt 0:01:00]} e5 {[%emt 0:01:00]} 2. Nf3 {[%emt 0:00:30]} Nc6 {[%emt 0:00:30]} 3. Bb5 {[%emt 0:00:30]} a6 {[%emt 0:00:30]} 4. Ba4 {[%emt 0:00:00]} Nf6 {[%emt 0:00:00]} 5. O-O {[%emt 0:00:00]} Be7 {[%emt 0:00:00]} 6. Re1 {[%emt 0:00:00]} b5 {[%emt 0:00:30]} 7. Bb3 {[%emt 0:00:00]} O-O {[%emt 0:00:00]} 8. a4 {[%emt 0:00:00]} d5 {[%emt 0:00:00] C88: Closed Ruy Lopez: Anti-Marshall Systems.} 9. exd5 {[%emt 0:02:00]} Na5 {[%emt 0:00:00]} 10. Nxe5 {[%emt 0:01:30]} Nxb3 {[%emt 0:00:00]} 11. Nc6 {[%emt 0:00:30]} Bg4 {[%emt 0:00:00]} 12. cxb3 {[%emt 0:07:30]} Bxd1 {[%emt 0:02:00]} 13. Nxd8 {[%emt 0:00:00]} Bxb3 {[%emt 0:02:30]} 14. Rxe7 {[%emt 0:03:00]} Raxd8 {[%emt 0:01:30]} 15. Re3 {[%emt 0:09:30]} bxa4 {[%emt 0:02:30]} 16. Nc3 {[%emt 0:01:30]} Nxd5 {[%emt 0:05:30]} 17. Nxd5 {[%emt 0:04:30]} Rxd5 {[%emt 0:00:30]} 18. h3 {[%emt 0:13:30]} c5 {[%emt 0:00:30]} 19. d3 {[%emt 0:01:30]} f6 {[%emt 0:02:30]} 20. Rg3 {[%emt 0:08:30]} Rfd8 {[%emt 0:05:30]} 21. Bh6 {[%emt 0:14:30]} g5 {[%emt 0:01:30]} ({Nicht} 21... Rxd3 22. Rxg7+ (22. Bxg7 $2 {geht unter.} Rxg3 23. fxg3 Kxg7 $19) 22... Kh8 23. Rc7 $11) (21... R8d7 $17 22. Rc1 a3 (22... Rxd3 $2 23. Rxd3 Rxd3 24. Be3 $19) 23. bxa3 Rxd3 24. Rxd3 Rxd3) 22. Re1 {[%emt 0:03:30]} ({White should play} 22. h4) 22... Kf7 {[%emt 0:00:30]} 23. h4 $17 {[%emt 0:00:00]} Rxd3 {[%emt 0:04:30]} 24. Rxd3 {[%emt 0:04:00]} Rxd3 {[%emt 0:00:30]} 25. hxg5 {[%emt 0:04:30]} c4 {[%emt 0:11:30]} 26. gxf6 {[%emt 0:00:30]} c3 {[%emt 0:00:30]} 27. bxc3 {[%emt 0:00:30]} a3 {[%emt 0:00:00]} 28. Bc1 {[%emt 0:00:30]} a2 {[%emt 0:00:00]} 29. Bb2 {[%emt 0:00:30]} Rd2 {[%emt 0:00:30]} 30. Ba1 {[%emt 0:00:00]} a5 {[%emt 0:02:30]} 31. c4 {[%emt 0:01:00]} Bxc4 {[%emt 0:04:30]} 32. Rc1 {[%emt 0:02:23]} Bb3 {[%emt 0:02:30]} 33. Bc3 {[%emt 0:03:59]} Rd5 {[%emt 0:05:30]} 34. Bb2 {[%emt 0:00:05]} Rd2 {[%emt 0:06:30]} 35. Bc3 {[%emt 0:00:04]} Re2 {[%emt 0:01:30]} 36. Bxa5 {[%emt 0:07:27]} Rb2 {[%emt 0:02:30]} 37. Rc7+ {[%emt 0:00:07]} Kg6 {[%emt 0:02:30]} 38. Rg7+ {[%emt 0:00:30]} Kh6 {[%emt 0:00:30]} 39. Bc3 {[%emt 0:00:00]} a1=Q+ {[%emt 0:00:00]} 40. Kh2 {[%emt 0:00:18]} Qc1 {[%emt 0:00:00]} 41. Rg3 {[%emt 0:00:30]} Rxf2 {[%emt 0:00:30]} 42. Bd4 {[%emt 0:00:10]} Re2 {[%emt 0:01:30]} 43. Rxb3 {[%emt 0:01:07]} Qf4+ {[%emt 0:00:30]} 44. Rg3 {[%emt 0:00:30]} Qxd4 {[%emt 0:00:30]} 45. f7 {[%emt 0:00:30]} Rf2 {[%emt 0:00:00]} 0-1

[Event "Turkish-ch Youth U15 2024"]
[Site "Belek Antalya"]
[Date "2024.01.25"]
[Round "7"]
[White "Seyhan, Pelin"]
[Black "Senel, Duru"]
[Result "1-0"]
[ECO "B13"]
[WhiteElo "1532"]
[BlackElo "1172"]
[Annotator "NA RC COMBH"]
[PlyCount "97"]
[EventDate "2024.01.21"]
[EventType "swiss"]
[EventCountry "TUR"]
[SourceTitle "playchess.com"]
[Source "ChessBase"]
[SourceQuality "1"]
[TimeControl "5400+30"]

1. e4 {[%emt 0:01:00]} c6 {[%emt 0:01:00]} 2. d4 {[%emt 0:00:30]} d5 {[%emt 0:00:30]} 3. exd5 {[%emt 0:00:30]} cxd5 {[%emt 0:00:30]} 4. Bd3 {[%emt 0:00:00]} Nc6 {[%emt 0:00:00]} 5. c3 {[%emt 0:00:00]} Qc7 {[%emt 0:00:00]} 6. Na3 {[%emt 0:00:30]} a6 {[%emt 0:02:30]} 7. Nc2 {[%emt 0:00:30]} Nf6 {[%emt 0:00:30]} 8. h3 {[%emt 0:00:30]} g6 {[%emt 0:03:30]} 9. Nf3 {[%emt 0:00:00]} Bf5 {[%emt 0:01:30]} 10. Bxf5 {[%emt 0:19:00]} gxf5 {[%emt 0:00:30]} 11. O-O {[%emt 0:00:30]} Ne4 {[%emt 0:04:30]} 12. Nce1 {[%emt 0:00:00]} e6 {[%emt 0:02:30]} 13. Nd3 {[%emt 0:05:00]} Bd6 {[%emt 0:01:30]} 14. Nfe5 {[%emt 0:19:30]} Nxe5 {[%emt 0:04:30]} 15. dxe5 {[%emt 0:00:30]} Bxe5 {[%emt 0:01:30]} 16. Nxe5 {[%emt 0:00:30]} Qxe5 {[%emt 0:00:30]} 17. Be3 {[%emt 0:08:30]} Qd6 {[%emt 0:06:30]} 18. Qh5 {[%emt 0:05:30]} Nf6 {[%emt 0:06:30]} 19. Qg5 {[%emt 0:01:30]} Qe7 {[%emt 0:04:30]} 20. Bd4 {[%emt 0:01:30]} e5 {[%emt 0:02:30]} 21. Qxf5 {[%emt 0:02:30]} Nd7 {[%emt 0:03:30]} 22. Rae1 {[%emt 0:01:30]} f6 {[%emt 0:02:30]} 23. f4 {[%emt 0:00:30]} Rg8 {[%emt 0:01:30]} 24. fxe5 {[%emt 0:01:30]} fxe5 {[%emt 0:03:30]} 25. Bxe5 {[%emt 0:02:30]} O-O-O {[%emt 0:02:30]} 26. Bh2 {[%emt 0:04:30]} Qc5+ {[%emt 0:01:30]} 27. Qf2 {[%emt 0:00:30]} Rg7 {[%emt 0:03:30]} 28. Qxc5+ {[%emt 0:07:20]} Nxc5 {[%emt 0:00:00]} 29. Be5 {[%emt 0:00:10]} Rgd7 {[%emt 0:03:00]} 30. Bd4 {[%emt 0:00:32]} Ne4 {[%emt 0:01:30]} 31. Rf4 {[%emt 0:00:14]} Rg8 {[%emt 0:02:30]} 32. Ref1 {[%emt 0:00:52]} Rdd8 {[%emt 0:01:30]} 33. Kh2 {[%emt 0:00:45]} Ng3 {[%emt 0:01:30]} 34. R1f3 {[%emt 0:00:24]} Ne2 {[%emt 0:01:30]} 35. Rf7 {[%emt 0:00:10]} Nxd4 {[%emt 0:01:30]} 36. cxd4 {[%emt 0:00:02]} h6 {[%emt 0:01:30]} 37. Rc3+ {[%emt 0:00:04]} Kb8 {[%emt 0:00:30]} 38. Rcc7 {[%emt 0:00:05]} Rdf8 {[%emt 0:00:30]} 39. Rxb7+ {[%emt 0:00:22]} Kc8 {[%emt 0:00:30]} 40. Rxf8+ {[%emt 0:02:26]} Rxf8 {[%emt 0:00:30]} 41. Rb6 {[%emt 0:00:30]} Rf4 {[%emt 0:00:30]} 42. Rxa6 {[%emt 0:00:30]} Rxd4 {[%emt 0:00:30]} 43. Rxh6 {[%emt 0:00:30]} Rd2 {[%emt 0:00:30]} 44. Rb6 {[%emt 0:00:00]} d4 {[%emt 0:00:00]} 45. Rb4 {[%emt 0:00:04]} d3 {[%emt 0:01:00]} 46. Rd4 {[%emt 0:00:30]} Rxb2 {[%emt 0:00:30]} 47. Rxd3 {[%emt 0:00:30]} Rxa2 {[%emt 0:00:30]} 48. h4 {[%emt 0:00:30]} Ra5 {[%emt 0:00:30]} 49. g4 {[%emt 0:00:00]} 1-0

[Event "Turkish-ch Youth U15 2024"]
[Site "Belek Antalya"]
[Date "2024.01.25"]
[Round "7"]
[White "Gedik, Eylul Ceren"]
[Black "Keskinler, Ela"]
[Result "0-1"]
[ECO "A17"]
[WhiteElo "1479"]
[BlackElo "1315"]
[Annotator "NA RC COMBH"]
[PlyCount "94"]
[EventDate "2024.01.21"]
[EventType "swiss"]
[EventCountry "TUR"]
[SourceTitle "playchess.com"]
[Source "ChessBase"]
[SourceQuality "1"]
[TimeControl "5400+30"]

1. c4 {[%emt 0:01:00]} e6 {[%emt 0:01:00]} 2. Nc3 {[%emt 0:01:30]} d5 {[%emt 0:00:00]} 3. g3 {[%emt 0:01:30]} Nf6 {[%emt 0:01:00]} 4. Bg2 {[%emt 0:00:30]} c6 {[%emt 0:00:30]} 5. b3 {[%emt 0:01:30]} e5 {[%emt 0:08:30]} 6. cxd5 {[%emt 0:21:30]} cxd5 {[%emt 0:00:30]} 7. d3 {[%emt 0:07:30]} Nc6 {[%emt 0:03:30]} 8. Nf3 {[%emt 0:02:30]} Be6 {[%emt 0:03:30]} 9. O-O {[%emt 0:01:30]} Rc8 {[%emt 0:01:30]} 10. Bb2 {[%emt 0:01:30]} d4 {[%emt 0:07:30]} 11. Ne4 {[%emt 0:06:30]} Nxe4 {[%emt 0:01:30]} 12. dxe4 {[%emt 0:00:00]} f6 {[%emt 0:01:30]} 13. Ne1 {[%emt 0:05:00]} Qa5 {[%emt 0:11:30]} 14. f4 {[%emt 0:11:30]} Bb4 {[%emt 0:05:30]} 15. Nd3 {[%emt 0:03:30]} O-O {[%emt 0:01:30]} 16. a3 {[%emt 0:11:30]} Bc3 {[%emt 0:02:30]} 17. b4 {[%emt 0:04:18]} Qb5 {[%emt 0:05:30]} 18. a4 {[%emt 0:02:13]} Qb6 {[%emt 0:01:30]} 19. b5 {[%emt 0:03:18]} Bxb2 {[%emt 0:07:30]} 20. Nxb2 {[%emt 0:00:16]} Nb4 {[%emt 0:01:30]} 21. Qd2 {[%emt 0:02:29]} d3+ {[%emt 0:01:30]} 22. Kh1 {[%emt 0:04:52]} dxe2 {[%emt 0:01:30]} 23. Rfc1 {[%emt 0:00:56]} e1=Q+ {[%emt 0:00:30]} 24. Qxe1 {[%emt 0:02:56]} Nc2 {[%emt 0:00:30]} 25. Qe2 {[%emt 0:00:32]} Nxa1 {[%emt 0:00:30]} 26. Rxa1 {[%emt 0:00:00]} Bb3 {[%emt 0:00:30]} 27. Qd3 {[%emt 0:01:51]} Qe6 {[%emt 0:02:30]} 28. Bh3 {[%emt 0:01:10]} Qxh3 {[%emt 0:03:30]} 29. Qxb3+ {[%emt 0:00:01]} Kh8 {[%emt 0:00:00]} 30. Nd3 {[%emt 0:00:42]} Qg4 {[%emt 0:01:00]} 31. Nf2 {[%emt 0:01:33]} Qe2 {[%emt 0:00:00]} 32. Kg2 {[%emt 0:00:30]} Rc2 {[%emt 0:00:00]} 33. Qf3 {[%emt 0:00:03]} Qxf3+ {[%emt 0:02:30]} 34. Kxf3 {[%emt 0:00:30]} Rc3+ {[%emt 0:00:30]} 35. Ke2 {[%emt 0:00:30]} Rd8 {[%emt 0:00:30]} 36. Ra2 {[%emt 0:00:30]} Rd4 {[%emt 0:00:30]} 37. a5 {[%emt 0:00:30]} Rb4 {[%emt 0:00:30]} 38. b6 {[%emt 0:00:30]} axb6 {[%emt 0:00:30]} 39. axb6 {[%emt 0:00:07]} Rc8 {[%emt 0:01:30]} 40. fxe5 {[%emt 0:01:08]} fxe5 {[%emt 0:01:30]} 41. Ra5 {[%emt 0:00:01]} Re8 {[%emt 0:00:00]} 42. Nd3 {[%emt 0:00:59]} Rxb6 {[%emt 0:00:00]} 43. Nxe5 {[%emt 0:00:54]} Rbe6 {[%emt 0:00:30]} 44. Nf3 {[%emt 0:00:24]} Rxe4+ {[%emt 0:00:30]} 45. Kf2 {[%emt 0:00:28]} Re2+ {[%emt 0:00:30]} 46. Kf1 {[%emt 0:00:30]} Rb2 {[%emt 0:00:30]} 47. Ra7 {[%emt 0:00:30]} Kg8 {[%emt 0:00:30]} 0-1

[Event "Turkish-ch Youth U15 2024"]
[Site "Belek Antalya"]
[Date "2024.01.25"]
[Round "7"]
[White "Oztay, Rezzan"]
[Black "Bursali, Ela"]
[Result "1-0"]
[ECO "B06"]
[WhiteElo "1388"]
[BlackElo "1556"]
[Annotator "NA RC COMBH"]
[PlyCount "53"]
[EventDate "2024.01.21"]
[EventType "swiss"]
[EventCountry "TUR"]
[SourceTitle "playchess.com"]
[Source "ChessBase"]
[SourceQuality "1"]
[TimeControl "5400+30"]

1. e4 {[%emt 0:01:00]} g6 {[%emt 0:01:00]} 2. Nf3 {[%emt 0:00:30]} Bg7 {[%emt 0:00:00]} 3. c3 {[%emt 0:00:00]} d6 {[%emt 0:01:00]} 4. Bc4 {[%emt 0:01:00]} e6 {[%emt 0:00:30]} 5. O-O {[%emt 0:01:30]} Ne7 {[%emt 0:00:30]} 6. d4 {[%emt 0:02:30]} O-O {[%emt 0:02:30]} 7. Bf4 {[%emt 0:02:30]} Nd7 {[%emt 0:02:30]} 8. Nbd2 {[%emt 0:02:30]} Nb6 {[%emt 0:04:30]} 9. Bb3 {[%emt 0:01:30]} d5 {[%emt 0:02:30]} 10. Re1 {[%emt 0:02:30]} h6 {[%emt 0:04:30]} 11. Ne5 {[%emt 0:03:30]} Nd7 {[%emt 0:07:30]} 12. Qg4 {[%emt 0:02:30]} Nxe5 {[%emt 0:02:30]} 13. dxe5 {[%emt 0:02:30]} Nc6 {[%emt 0:05:30]} 14. Nf3 {[%emt 0:03:30]} Kh7 {[%emt 0:12:30]} 15. Rad1 {[%emt 0:04:30]} Ne7 {[%emt 0:06:30]} 16. Qh4 {[%emt 0:03:30]} c6 {[%emt 0:08:30]} 17. Bg5 {[%emt 0:02:30]} Re8 {[%emt 0:02:30]} 18. Bf6 {[%emt 0:00:30]} Qc7 {[%emt 0:07:30]} 19. Bc2 {[%emt 0:04:30]} Bxf6 {[%emt 0:11:32]} 20. exf6 {[%emt 0:00:30]} Ng8 {[%emt 0:01:17]} 21. e5 {[%emt 0:01:30]} b6 {[%emt 0:05:31]} 22. Rd4 {[%emt 0:00:30]} Rb8 {[%emt 0:02:03]} 23. Qh3 {[%emt 0:00:30]} Nxf6 {[%emt 0:02:49]} 24. exf6 {[%emt 0:00:30]} Rh8 {[%emt 0:00:22]} 25. Rh4 {[%emt 0:00:30]} Kg8 {[%emt 0:01:27]} 26. Rxh6 {[%emt 0:00:30]} Rxh6 {[%emt 0:00:30]} 27. Qxh6 {[%emt 0:00:00]} 1-0